bitfinex-derivatives/quotes_BNBF0:USTF0_20250617
["timestamp","ask_amount","ask_price","bid_price","bid_amount"]
[1750201685593,1.15217043,646.67,646.18,1.54279953]
[1750201685888,1.15217043,646.67,646.17,1.54279953]
[1750201686385,1.15217043,646.67,646.18,1.54279953]
[1750201689487,1.15448752,646.67,646.18,1.54279953]
[1750201690891,1.15448752,646.67,646.19,1.65]
[1750201694893,1.15448752,646.66,646.19,1.65]
[1750201695195,1.15448752,646.69,646.19,1.65]
[1750201695495,1.15448752,646.68,646.19,1.65]
[1750201695797,1.15448752,646.69,646.19,1.65]
[1750201696801,1.15448752,646.69,646.2,1.415]
[1750201705004,1.15448752,646.67,646.2,1.415]
[1750201712409,1.15448752,646.68,646.2,1.415]
[1750201713311,1.15448752,646.67,646.2,1.415]
[1750201713517,1.15448752,646.68,646.2,1.415]
[1750201714417,1.15448752,646.67,646.2,1.415]
[1750201714618,1.15448752,646.68,646.2,1.415]
[1750201715014,1.15448752,646.69,646.2,1.415]
[1750201719917,1.15448752,646.71,646.2,1.415]
[1750201720925,1.15448752,646.71,646.08,1.54279953]
[1750201722721,1.15448752,646.68,646.04,1.088]
[1750201722928,1.15448752,646.66,646.04,1.088]
[1750201723425,1.15448752,646.67,646.04,1.088]
[1750201723621,1.15448752,646.66,646.05,1.449]
[1750201724421,1.15448752,646.65,646.05,1.449]
[1750201726528,1.15448752,646.66,646.05,1.449]
[1750201728228,1.15448752,646.67,646.05,1.449]
[1750201729829,1.15448752,646.66,646.05,1.449]
[1750201731830,1.15448752,646.66,646.06,1.386]
[1750201732530,1.15448752,646.64,646.06,1.386]
[1750201736532,1.15448752,646.65,646.06,1.386]
[1750201738141,1.15448752,646.63,646.06,1.386]
[1750201739142,1.15448752,646.63,646.07,1.449]
[1750201744543,1.15448752,646.62,646.07,2.99179953]
[1750201746440,1.15448752,646.61,646.09,1.54279953]
[1750201752850,1.15448752,646.61,646.1,1.625]
[1750201753050,1.15448752,646.67,646.1,1.625]
[1750201753251,1.15448752,646.66,646.1,1.625]
[1750201753850,1.15448752,646.67,646.1,1.625]
[1750201757849,1.15448752,646.67,646.11,1.449]
[1750201762651,1.15448752,646.68,646.11,1.449]
[1750201762851,1.15448752,646.64,646.11,1.449]
[1750201763354,1.15448752,646.65,646.11,1.449]
[1750201766457,1.15448752,646.64,646.11,1.449]
[1750201766756,1.15448752,646.79,646.13,1.54279953]
[1750201767451,1.15448752,646.81,646.14,1.54279953]
[1750201767652,1.15448752,646.82,646.14,1.54279953]
[1750201768557,1.15448752,646.83,646.14,1.54279953]
[1750201769259,1.15448752,646.83,646.13,1.54279953]
[1750201769658,1.15448752,646.84,646.12,1.54279953]
[1750201770558,1.15448752,646.84,646.11,2.99179953]
[1750201771254,1.15448752,646.86,646.13,1.54279953]
[1750201771455,1.15448752,646.87,646.12,1.54279953]
[1750201771953,1.15448752,646.86,646.12,1.54279953]
[1750201772154,1.15448752,646.85,646.16,1.54279953]
[1750201773153,1.15448752,646.86,646.16,1.54279953]
[1750201773558,1.15448752,646.87,646.16,1.54279953]
[1750201774256,1.15448752,646.87,646.17,1.497]
[1750201774556,1.15448752,646.88,646.17,1.497]
[1750201776462,1.15448752,646.89,646.17,1.497]
[1750201776665,1.15448752,646.87,646.17,1.497]
[1750201777466,1.15448752,646.9,646.17,1.497]
[1750201777765,1.15448752,646.91,646.17,1.497]
[1750201778370,1.15448752,646.92,646.17,1.497]
[1750201779062,1.15448752,646.93,646.17,1.497]
[1750201780667,1.15448752,646.94,646.17,1.497]
[1750201785370,1.15448752,646.94,646.18,1.341]
[1750201786371,1.15448752,646.95,646.18,1.341]
[1750201787368,1.15448752,646.93,646.18,1.341]
[1750201787669,1.15448752,646.92,646.18,2.88379953]
[1750201787869,1.15448752,646.91,646.2,1.54279953]
[1750201788872,1.15448752,646.91,646.21,1.54279953]
[1750201789370,1.15448752,646.92,646.22,1.54279953]
[1750201789574,1.15448752,646.93,646.21,1.54279953]
[1750201790067,1.15448752,646.93,646.22,1.54279953]
[1750201790372,1.15448752,646.93,646.21,1.54279953]
[1750201791174,1.15448752,646.93,646.22,1.54279953]
[1750201792672,1.15448752,646.93,646.21,1.54279953]
[1750201794375,1.15448752,646.93,646.22,1.54279953]
[1750201794571,1.15448752,646.93,646.21,1.54279953]
[1750201794975,1.15448752,646.94,646.22,1.54279953]
[1750201795177,0.26909262,647.03,646.23,1.54279953]
[1750201795178,1.15448752,646.95,646.23,1.54279953]
[1750201795378,1.15448752,646.96,646.2,1.54279953]
[1750201795674,1.15448752,646.96,646.21,1.54279953]
[1750201796874,1.15448752,646.96,646.2,1.54279953]
[1750201798280,1.15448752,646.95,646.19,1.54279953]
[1750201799275,1.15448752,646.96,646.21,1.54279953]
[1750201799779,1.15448752,646.96,646.2,1.54279953]
[1750201800074,1.15448752,646.98,646.2,1.54279953]
[1750201800674,1.15448752,646.99,646.2,1.54279953]
[1750201803279,1.15448752,646.98,646.21,1.54279953]
[1750201804181,1.15448752,646.98,646.22,1.54279953]
[1750201805284,1.15448752,646.98,646.23,1.54279953]
[1750201805583,1.15448752,646.98,646.24,1.54279953]
[1750201807078,1.15448752,646.97,646.24,1.54279953]
[1750201807283,1.15448752,646.99,646.22,1.54279953]
[1750201807481,1.15448752,646.98,646.22,1.54279953]
[1750201808284,1.15448752,646.98,646.23,1.213]
[1750201808681,1.15448752,647.0,646.23,1.213]
[1750201812583,1.15448752,646.98,646.23,1.213]
[1750201813386,1.15448752,646.97,646.23,1.213]
[1750201813585,1.15448752,646.98,646.23,1.213]
[1750201813784,1.15448752,646.96,646.23,1.213]
[1750201814289,1.15448752,646.96,646.24,1.566]
[1750201814491,1.15448752,646.95,646.24,1.566]
[1750201817292,1.15448752,646.94,646.24,1.566]
[1750201818192,0.26909262,647.03,646.24,1.566]
[1750201818387,1.15286415,646.94,646.24,1.566]
[1750201818590,1.15286415,646.92,646.24,1.566]
[1750201820089,1.15286415,646.91,646.24,1.566]
[1750201821491,1.15286415,646.9,646.24,1.566]
[1750201822493,1.15286415,646.89,646.24,1.566]
[1750201823390,1.15286415,646.88,646.24,1.566]
[1750201823596,1.15286415,646.88,646.25,1.54279953]
[1750201824394,1.15286415,646.88,646.26,1.54279953]
[1750201824594,1.15286415,646.87,646.26,1.54279953]
[1750201825491,1.15286415,646.86,646.27,1.54279953]
[1750201825796,1.15286415,646.84,646.24,1.566]
[1750201826095,1.15286415,646.8,646.24,1.566]
[1750201826595,0.26909262,647.03,646.24,1.566]
[1750201826596,1.15286415,646.78,646.24,1.566]
[1750201826794,1.15286415,646.76,646.24,1.566]
[1750201828097,1.15286415,646.77,646.24,1.566]
[1750201828299,1.15286415,646.78,646.24,1.566]
[1750201829599,1.15286415,646.77,646.24,1.566]
[1750201831295,1.15286415,646.76,646.24,1.566]
[1750201832502,1.15286415,646.75,646.24,1.566]
[1750201832701,1.15286415,646.71,646.24,1.566]
[1750201833002,1.15286415,646.71,646.25,1.448]
[1750201835397,1.15286415,646.72,646.25,1.448]
[1750201835802,1.15286415,646.73,646.25,1.448]
[1750201836097,1.15286415,646.72,646.25,1.448]
[1750201836698,1.15286415,646.73,646.25,1.448]
[1750201838403,1.15286415,646.74,646.25,1.448]
[1750201839904,1.15286415,646.73,646.25,1.448]
[1750201840404,1.15286415,646.74,646.25,1.448]
[1750201844511,1.15286415,646.75,646.26,1.14]
[1750201845408,1.15286415,646.76,646.26,1.14]
[1750201847910,2.29941979,647.0,646.26,1.14]
[1750201847911,1.15286415,646.77,646.26,1.14]
[1750201849210,1.15286415,646.76,646.26,1.14]
[1750201849410,1.15286415,646.77,646.26,1.14]
[1750201852013,1.15286415,646.77,646.27,1.29]
[1750201855420,1.15286415,646.76,646.27,1.29]
[1750201858121,1.15229951,646.76,646.27,1.29]
[1750201861828,1.15229951,646.76,646.28,1.122]
[1750201864429,1.15229951,646.75,646.28,1.122]
[1750201866228,1.15229951,646.75,646.29,1.448]
[1750201867425,1.15229951,646.74,646.29,1.448]
[1750201867624,1.15229951,646.75,646.29,1.448]
[1750201868424,1.15229951,646.74,646.29,1.448]
[1750201868626,1.15229951,646.75,646.29,1.448]
[1750201870526,1.15229951,646.74,646.29,1.448]
[1750201872625,1.15229951,646.73,646.29,1.448]
[1750201873627,1.15229951,646.72,646.29,1.448]
[1750201874129,1.15229951,646.73,646.29,1.448]
[1750201874429,1.15229951,646.72,646.29,1.448]
[1750201876532,1.15229951,646.73,646.29,1.448]
[1750201877327,1.15229951,646.72,646.29,1.448]
[1750201877532,1.15229951,646.73,646.29,1.448]
[1750201878334,1.15229951,646.72,646.29,1.448]
[1750201879434,1.15229951,646.71,646.29,1.448]
[1750201881337,1.15229951,646.71,646.28,1.122]
[1750201882436,1.15229951,646.7,646.28,1.122]
[1750201882836,1.15229951,646.71,646.28,1.122]
[1750201883437,1.15229951,646.7,646.28,1.122]
[1750201884437,1.15229951,646.69,646.28,1.122]
[1750201884637,1.15229951,646.69,646.29,1.32]
[1750201885434,1.15229951,646.68,646.29,1.32]
[1750201886438,1.15229951,646.67,646.29,1.32]
[1750201888636,1.15229951,646.66,646.29,1.32]
[1750201890641,1.53294653,646.76,646.29,1.32]
[1750201890842,1.15642092,646.65,646.29,1.32]
[1750201892738,1.15642092,646.64,646.29,1.32]
[1750201898945,1.15642092,646.64,646.3,1.778]
[1750201905442,1.15642092,646.64,646.31,1.098]
[1750201916855,1.15642092,646.65,646.31,1.098]
[1750201917759,1.53294653,646.76,646.31,1.098]
[1750201917956,1.15686623,646.65,646.31,1.098]
[1750201918657,1.15686623,646.65,646.3,1.778]
[1750201921662,1.15686623,646.64,646.3,1.778]
[1750201921962,1.15686623,646.64,646.31,1.448]
[1750201922559,1.15686623,646.65,646.31,1.448]
[1750201923658,1.15686623,646.71,646.31,1.448]
[1750201923858,1.53294653,646.86,646.31,1.448]
[1750201923859,1.15686623,646.73,646.31,1.448]
[1750201924258,1.15686623,646.74,646.31,1.448]
[1750201924557,1.15686623,646.75,646.31,1.448]
[1750201925259,1.15686623,646.76,646.31,1.448]
[1750201927960,1.15686623,646.78,646.31,1.448]
[1750201928164,1.15686623,646.79,646.31,1.448]
[1750201929260,1.15686623,646.8,646.31,1.448]
[1750201931363,1.15686623,646.81,646.31,1.448]
[1750201933568,1.15686623,646.77,646.31,1.448]
[1750201935264,1.15686623,646.78,646.31,1.448]
[1750201936167,0.26909262,647.03,646.31,1.448]
[1750201936168,1.15686623,646.8,646.31,1.448]
[1750201937064,1.15686623,646.81,646.31,1.448]
[1750201938270,1.15686623,646.82,646.31,1.448]
[1750201938666,1.15686623,646.81,646.31,1.448]
[1750201938870,1.15686623,646.81,646.32,1.116]
[1750201939372,1.15686623,646.82,646.32,1.116]
[1750201939571,1.15686623,646.81,646.32,1.116]
[1750201939772,1.15686623,646.8,646.32,1.116]
[1750201940573,1.15686623,646.81,646.32,1.116]
[1750201942268,1.15686623,646.82,646.32,1.116]
[1750201947476,1.15686623,646.84,646.32,1.116]
[1750201949779,1.15686623,646.84,646.33,1.448]
[1750201952476,1.15686623,646.84,646.34,1.46]
[1750201958584,1.15686623,646.83,646.34,1.46]
[1750201959279,1.15686623,646.84,646.34,1.46]
[1750201961381,1.15686623,646.83,646.34,1.46]
[1750201967081,1.15686623,646.82,646.34,1.46]
[1750201968987,1.15686623,646.81,646.34,1.46]
[1750201971089,1.15686623,646.81,646.35,1.319]
[1750201974094,1.15686623,646.82,646.35,1.319]
[1750201974390,1.15686623,646.86,646.35,1.319]
[1750201974592,1.15686623,646.93,646.35,1.319]
[1750201974796,1.15686623,646.94,646.35,1.319]
[1750201975095,1.15686623,646.96,646.35,1.319]
[1750201975497,1.15686623,646.97,646.35,1.319]
[1750201976198,1.15686623,647.0,646.35,1.319]
[1750201976397,1.15686623,647.02,646.39,1.54279953]
[1750201977300,1.15686623,647.04,646.39,1.54279953]
[1750201978398,1.15686623,647.05,646.39,1.54279953]
[1750201978599,1.15686623,647.07,646.4,1.54279953]
[1750201978798,1.15686623,647.05,646.39,1.54279953]
[1750201978996,1.15686623,647.07,646.4,1.54279953]
[1750201979295,1.15686623,647.06,646.38,1.54279953]
[1750201980799,1.15686623,647.06,646.37,1.54279953]
[1750201981300,1.15686623,647.09,646.35,1.319]
[1750201982699,1.15686623,647.1,646.35,1.319]
[1750201983003,1.15686623,647.09,646.35,1.319]
[1750201984001,1.15686623,647.1,646.35,1.319]
[1750201984403,1.15686623,647.09,646.35,1.319]
[1750201984707,1.15686623,647.1,646.35,1.319]
[1750201984906,1.15686623,647.09,646.35,1.319]
[1750201985807,1.15686623,647.1,646.35,1.319]
[1750201986106,1.15686623,647.09,646.35,1.319]
[1750201986508,1.15686623,647.1,646.35,1.319]
[1750201987108,1.15686623,647.09,646.35,1.319]
[1750201987709,1.15686623,647.1,646.35,1.319]
[1750201991209,1.15686623,647.07,646.38,1.54279953]
[1750201991408,1.15686623,647.07,646.37,1.54279953]
[1750201991609,1.15686623,647.07,646.38,1.54279953]
[1750201991809,1.15686623,647.08,646.38,1.54279953]
[1750201992419,1.15686623,647.07,646.38,1.54279953]
[1750201992913,1.53294653,647.18,646.38,1.54279953]
[1750201992914,1.15686623,647.08,646.38,1.54279953]
[1750201993110,1.15686623,647.07,646.39,1.54279953]
[1750201994610,1.15686623,647.08,646.39,1.54279953]
[1750201996212,1.15686623,647.2,646.35,1.319]
[1750201996615,1.15686623,647.21,646.35,1.319]
[1750201997713,1.15686623,647.22,646.35,1.319]
[1750201998011,1.15686623,647.21,646.35,1.319]
[1750201998616,1.15686623,647.22,646.35,1.319]
[1750202000217,1.15686623,647.22,646.36,1.27]
[1750202004217,1.15686623,647.22,646.37,1.287]
[1750202005925,1.15686623,647.14,646.39,1.54279953]
[1750202006618,1.15686623,647.14,646.38,1.54279953]
[1750202008525,1.15686623,647.18,646.37,1.287]
[1750202009123,1.15686623,647.21,646.37,1.287]
[1750202009822,1.15686623,647.19,646.37,1.287]
[1750202010626,1.15686623,647.17,646.37,1.287]
[1750202011227,0.26902086,647.23,646.37,1.287]
[1750202011228,1.15686623,647.16,646.37,1.287]
[1750202013025,1.15686623,647.15,646.37,1.287]
[1750202013526,1.15686623,647.14,646.37,1.287]
[1750202013729,1.15686623,647.13,646.37,1.287]
[1750202013929,1.15686623,647.02,646.37,1.287]
[1750202014423,1.15686623,646.97,646.37,1.287]
[1750202015023,1.15686623,646.96,646.37,1.287]
[1750202022340,1.15686623,646.95,646.37,1.287]
[1750202023640,1.15686623,646.94,646.37,1.287]
[1750202024241,1.15686623,646.93,646.37,1.287]
[1750202029342,1.15686623,646.92,646.37,1.287]
[1750202033246,1.15686623,646.91,646.36,1.27]
[1750202036451,1.15686623,646.91,646.37,1.448]
[1750202037453,1.15686623,646.92,646.37,1.448]
[1750202044359,1.15686623,646.92,646.38,1.431]
[1750202049364,1.15686623,646.93,646.38,1.431]
[1750202057366,1.15686623,646.92,646.38,1.431]
[1750202057666,1.15686623,646.92,646.37,1.448]
[1750202059767,1.15686623,646.92,646.38,1.506]
[1750202059969,1.15686623,646.93,646.38,1.506]
[1750202060465,1.15686623,646.95,646.38,1.506]
[1750202061866,1.15686623,646.94,646.38,1.506]
[1750202062171,1.15686623,646.95,646.38,1.506]
[1750202062370,1.15686623,646.98,646.38,1.506]
[1750202062866,1.15686623,646.97,646.38,1.506]
[1750202063065,1.15686623,646.99,646.38,1.506]
[1750202063770,1.15686623,646.98,646.38,1.506]
[1750202065771,1.15686623,646.97,646.38,1.506]
[1750202067268,1.15686623,646.96,646.38,1.506]
[1750202068871,1.15686623,646.95,646.38,1.506]
[1750202069570,1.15686623,646.92,646.38,1.506]
[1750202070071,1.15686623,646.9,646.39,1.447]
[1750202070277,1.15686623,646.89,646.39,1.447]
[1750202070569,1.15686623,646.88,646.39,1.447]
[1750202072071,1.15686623,646.87,646.39,1.447]
[1750202072669,1.15686623,646.86,646.39,1.447]
[1750202076876,1.15686623,646.85,646.39,1.447]
[1750202077780,0.26902086,647.23,646.39,1.447]
[1750202077781,1.15686623,646.83,646.39,1.447]
[1750202077980,1.15686623,646.8,646.39,1.447]
[1750202078478,1.15686623,646.79,646.39,1.447]
[1750202080177,1.15686623,646.8,646.39,1.447]
[1750202080980,1.15686623,646.79,646.39,1.447]
[1750202081180,1.15686623,646.8,646.39,1.447]
[1750202084179,1.53294653,646.93,646.39,1.447]
[1750202084180,1.15686623,646.81,646.39,1.447]
[1750202085281,1.15686623,646.8,646.39,1.447]
[1750202085478,1.15686623,646.78,646.39,1.447]
[1750202085778,1.15686623,646.79,646.39,1.447]
[1750202087982,1.15686623,646.79,646.38,1.506]
[1750202089583,1.15393687,646.79,646.38,1.506]
[1750202090179,1.15393687,646.79,646.39,1.335]
[1750202092582,1.53294653,646.9,646.39,1.335]
[1750202092583,1.15393687,646.8,646.39,1.335]
[1750202098895,1.15393687,646.81,646.39,1.335]
[1750202100396,1.15354201,646.81,646.39,1.335]
[1750202100596,1.15354201,646.82,646.39,1.335]
[1750202101493,1.15354201,646.83,646.39,1.335]
[1750202102994,1.15354201,646.83,646.4,1.448]
[1750202103200,1.15354201,646.82,646.4,1.448]
[1750202104000,1.15354201,646.85,646.4,1.448]
[1750202106501,1.15354201,646.86,646.4,1.448]
[1750202108700,1.15354201,646.85,646.4,1.448]
[1750202110004,3.85120235,647.57,646.4,1.448]
[1750202110005,1.15354201,647.2,646.4,1.448]
[1750202110303,1.15354201,647.21,646.4,1.448]
[1750202110504,1.15354201,647.2,646.4,1.448]
[1750202110701,1.15354201,647.22,646.4,1.448]
[1750202110906,1.15354201,647.23,646.4,1.448]
[1750202111706,1.15354201,647.24,646.4,1.448]
[1750202111900,1.15354201,647.23,646.39,1.335]
[1750202112303,1.15354201,647.19,646.39,1.335]
[1750202112807,1.15354201,647.22,646.39,1.335]
[1750202113005,1.15354201,647.21,646.39,1.335]
[1750202113601,1.15354201,647.22,646.39,1.335]
[1750202118004,1.15354201,647.26,646.4,1.436]
[1750202119707,1.15135065,647.26,646.4,1.436]
[1750202121814,1.15135065,647.26,646.41,1.446]
[1750202122514,1.15135065,647.24,646.41,1.446]
[1750202122713,1.15135065,647.25,646.41,1.446]
[1750202125708,1.15135065,647.26,646.41,1.446]
[1750202126310,1.15135065,647.27,646.41,1.446]
[1750202128010,1.15135065,647.22,646.41,1.446]
[1750202131317,0.26902502,647.3,646.41,1.446]
[1750202131318,1.15135065,647.23,646.41,1.446]
[1750202133021,1.15135065,647.43,646.41,1.446]
[1750202133321,0.2689616,647.41,646.42,0.30939636]
[1750202139623,1.15135065,647.51,646.42,0.30939636]
[1750202139923,0.2689138,647.53,646.42,0.30939636]
[1750202145335,0.2689138,647.53,646.43,1.459]
[1750202145631,1.15135065,647.62,646.44,0.30938679]
[1750202145834,1.42022082,647.64,646.44,0.30938679]
[1750202146535,0.26887017,647.64,646.44,0.30938679]
[1750202148839,0.26887017,647.64,646.45,1.438]
[1750202149033,0.26887017,647.64,646.47,0.30937243]
[1750202149238,1.42022082,647.64,646.47,0.30937243]
[1750202149737,1.15135065,647.61,646.47,0.30937243]
[1750202150334,1.15135065,647.6,646.47,0.30937243]
[1750202150535,1.15135065,647.61,646.47,0.30937243]
[1750202150734,1.15135065,647.59,646.47,0.30937243]
[1750202151136,1.15135065,647.73,646.47,0.30937243]
[1750202151334,0.2688577,647.71,646.47,0.30937243]
[1750202160045,0.2688577,647.71,646.48,1.724]
[1750202160241,0.2688577,647.71,646.5,0.30935808]
[1750202162542,0.2688577,647.71,646.5,1.85215761]
[1750202162746,0.2688577,647.71,646.51,1.445]
[1750202162943,0.2688577,647.71,646.53,0.30934372]
[1750202163143,1.15135065,647.7,646.53,0.30934372]
[1750202163346,1.15135065,647.69,646.53,0.30934372]
[1750202163642,1.15135065,647.68,646.53,0.30934372]
[1750202163844,1.15135065,647.67,646.53,0.30934372]
[1750202164646,1.15135065,647.66,646.53,0.30934372]
[1750202165549,1.15135065,647.67,646.53,0.30934372]
[1750202166651,1.15135065,647.66,646.53,0.30934372]
[1750202166851,1.15135065,647.65,646.53,0.30934372]
[1750202167652,1.15135065,647.64,646.53,0.30934372]
[1750202169550,1.15135065,647.63,646.53,1.85214325]
[1750202169751,1.15135065,647.63,646.54,1.54279953]
[1750202170052,1.15135065,647.63,646.55,0.30933415]
[1750202172758,1.15135065,647.62,646.56,1.54279953]
[1750202172957,1.15135065,647.62,646.57,1.85212411]
[1750202173163,1.15135065,647.62,646.58,0.3093198]
[1750202174562,1.15135065,647.62,646.58,1.85211933]
[1750202175459,1.15135065,647.59,646.64,1.54279953]
[1750202175664,1.15135065,647.59,646.65,0.30928632]
[1750202176662,1.15135065,647.59,646.65,1.85208585]
[1750202177662,1.15135065,647.58,646.66,1.54279953]
[1750202177862,1.15135065,647.58,646.67,0.30927675]
[1750202178167,1.15135065,647.59,646.67,0.30927675]
[1750202178364,1.15135065,647.59,646.68,1.445]
[1750202178561,1.15135065,647.58,646.68,1.75427197]
[1750202180668,1.15135065,647.58,646.68,3.2970715]
[1750202181267,1.15135065,647.58,646.69,1.54279953]
[1750202181665,1.15135065,647.58,646.68,1.75427197]
[1750202181666,1.15135065,647.57,646.7,1.54279953]
[1750202182569,1.15135065,647.57,646.71,1.54279953]
[1750202182872,1.15135065,647.59,646.72,1.54279953]
[1750202183674,1.15135065,647.78,646.74,0.30924328]
[1750202184370,0.26880682,647.82,646.74,0.30924328]
[1750202184371,1.15135065,647.79,646.74,0.30924328]
[1750202184575,1.15135065,647.79,646.74,1.85204281]
[1750202184874,1.15135065,647.79,646.74,0.30924328]
[1750202185170,1.15135065,647.79,646.74,1.85204281]
[1750202185575,1.15135065,647.78,646.74,1.85204281]
[1750202186575,1.15135065,647.78,646.75,1.54279953]
[1750202186875,1.15135065,647.78,646.76,0.30923371]
[1750202187576,1.15135065,647.78,646.76,1.85203324]
[1750202188671,1.15135065,647.78,646.77,1.54279953]
[1750202188977,1.15135065,647.78,646.78,0.30922415]
[1750202189574,1.15135065,647.77,646.78,1.85202368]
[1750202189973,1.15135065,647.77,646.78,0.30922415]
[1750202190573,1.15135065,647.77,646.79,1.54279953]
[1750202190780,1.15135065,647.77,646.8,0.30921459]
[1750202191379,1.15135065,647.78,646.8,0.30921459]
[1750202191580,1.15135065,647.77,646.8,0.30921459]
[1750202191781,1.15135065,647.77,646.81,1.54279953]
[1750202192081,1.15135065,647.77,646.82,0.30920503]
[1750202192481,1.15135065,647.76,646.82,1.85200456]
[1750202193482,1.15135065,647.71,646.95,1.54279953]
[1750202194481,1.15135065,647.71,646.96,1.54279953]
[1750202195082,1.15135065,647.71,646.94,1.54279953]
[1750202195785,1.15135065,647.71,646.95,1.54279953]
[1750202196282,2.29941979,647.95,646.95,1.54279953]
[1750202196283,1.15135065,647.93,646.96,0.30913812]
[1750202197088,1.15135065,647.94,646.96,1.85193765]
[1750202197583,1.15135065,647.94,646.97,1.54279953]
[1750202197887,1.15135065,647.94,646.98,0.30912856]
[1750202198584,1.15135065,647.93,646.98,1.85192809]
[1750202198786,1.15135065,647.94,646.98,0.30912856]
[1750202199288,1.15135065,647.94,646.99,1.444]
[1750202199489,1.15135065,647.93,647.0,0.30911901]
[1750202199689,1.15135065,647.94,647.0,0.30911901]
[1750202203995,1.15135065,647.9,647.0,0.30911901]
[1750202204295,1.15135065,647.86,647.0,0.30911901]
[1750202204895,1.15135065,647.85,647.0,0.30911901]
[1750202205192,1.15135065,647.84,647.0,0.30911901]
[1750202206594,1.15153267,647.84,647.0,0.30911901]
[1750202209292,1.15153267,647.83,647.0,0.30911901]
[1750202209697,1.15153267,647.8,647.0,0.30911901]
[1750202210095,1.15153267,647.78,647.02,1.54279953]
[1750202210399,1.15153267,647.77,647.0,1.85191854]
[1750202210597,1.15153267,647.77,647.01,1.54279953]
[1750202210795,1.15153267,647.77,647.0,1.85191854]
[1750202210999,1.15153267,647.76,647.0,1.85191854]
[1750202211900,1.15153267,647.77,647.0,0.30911901]
[1750202212203,1.15153267,647.76,647.0,0.30911901]
[1750202212599,1.15153267,647.75,647.0,0.30911901]
[1750202214698,1.15153267,647.74,647.0,0.30911901]
[1750202215700,1.15153267,647.73,647.0,0.30911901]
[1750202216004,1.15153267,648.0,647.0,0.30911901]
[1750202216699,1.15153267,648.03,647.0,0.30911901]
[1750202221608,1.15153267,648.03,647.01,1.508]
[1750202221808,1.15153267,648.03,647.02,0.30910945]
[1750202222509,1.15153267,648.0,647.02,0.30910945]
[1750202225714,1.15153267,647.95,647.08,1.54279953]
[1750202226009,1.15153267,647.94,647.1,1.54279953]
[1750202228114,1.15153267,647.94,647.11,1.242]
[1750202228614,1.15153267,648.21,647.11,1.242]
[1750202229310,1.15153267,648.21,647.13,0.30905691]
[1750202229515,1.42017763,648.23,647.13,0.30905691]
[1750202229710,1.15153267,648.22,647.13,0.30905691]
[1750202232019,1.42017763,648.23,647.13,0.30905691]
[1750202232213,1.15153267,648.22,647.13,0.30905691]
[1750202233517,1.42017763,648.23,647.13,0.30905691]
[1750202234218,1.15153267,648.22,647.13,0.30905691]
[1750202234518,1.42017763,648.23,647.13,0.30905691]
[1750202238119,1.15153267,648.21,647.13,0.30905691]
[1750202238520,1.15153267,648.19,647.18,1.54279953]
[1750202238719,1.15153267,648.18,647.19,1.85182779]
[1750202238922,1.15153267,648.18,647.2,0.30902348]
[1750202240521,1.15153267,648.18,647.21,1.54279953]
[1750202240726,1.15153267,648.18,647.22,0.30901393]
[1750202242423,1.15153267,648.17,647.22,1.85181346]
[1750202243125,1.15153267,648.17,647.23,1.54279953]
[1750202243329,1.15153267,648.17,647.24,0.30900438]
[1750202245329,1.15153267,648.17,647.24,1.85180391]
[1750202245625,1.15153267,648.17,647.24,0.30900438]
[1750202247734,1.15153267,648.16,647.24,1.85180391]
[1750202248032,1.15153267,648.15,647.26,1.54279953]
[1750202248333,1.15153267,648.15,647.27,0.30899006]
[1750202249232,1.15153267,648.16,647.27,0.30899006]
[1750202250733,1.15153267,648.16,647.28,2.748]
[1750202250930,1.15153267,648.16,647.29,0.30898051]
[1750202256542,1.15153267,648.3,647.29,0.30898051]
[1750202256743,1.15153267,648.31,647.29,0.30898051]
[1750202257143,1.15153267,648.3,647.29,0.30898051]
[1750202257439,1.15153267,648.31,647.29,0.30898051]
[1750202257739,1.15153267,648.3,647.29,0.30898051]
[1750202257940,1.15153267,648.31,647.29,0.30898051]
[1750202258946,1.15153267,648.3,647.29,0.30898051]
[1750202264347,1.15153267,648.31,647.29,0.30898051]
[1750202264543,1.15153267,648.3,647.29,0.30898051]
[1750202266346,1.15153267,648.24,647.29,1.85178004]
[1750202266546,1.15153267,648.24,647.3,1.54279953]
[1750202266750,1.14904974,648.24,647.31,1.8517705]